fUSD/lending_fUSD_20250217
["ID","MTS","AMOUNT","RATE_DAILY","PERIOD"]
[353323746,1739765440821,-500.0,0.00013698,2]
[353323748,1739765440831,-151.0,0.00013698,2]
[353323750,1739765440842,-500.0,0.00013698,2]
[353323752,1739765440855,-518.20832432,0.00013698,2]
[353323754,1739765440865,-500.0,0.00013698,2]
[353323756,1739765440875,-501.4459855,0.00013698,2]
[353323758,1739765440885,-500.0,0.00013698,2]
[353323778,1739765441056,-500.0,0.00013698,2]
[353323780,1739765441066,-500.0,0.00013698,2]
[353323782,1739765441076,-500.0,0.00013698,2]
[353323784,1739765441085,-524.545092,0.00013698,2]
[353323786,1739765441095,-504.85088407,0.00013698,2]
[353323788,1739765441105,-500.0,0.00013698,2]
[353323790,1739765441114,-500.0,0.00013698,2]
[353323792,1739765441124,-500.0,0.00013698,2]
[353323793,1739765441133,-524.545092,0.00013698,2]
[353323795,1739765441144,-500.0,0.00013698,2]
[353323797,1739765441154,-500.0,0.00013698,2]
[353323798,1739765441163,-500.0,0.00013698,2]
[353323799,1739765441172,-504.88988508,0.00013698,2]
[353323800,1739765441182,-151.0,0.00013698,2]
[353323801,1739765441192,-151.0,0.00013698,2]
[353323802,1739765441206,-500.0,0.00013698,2]
[353323803,1739765441216,-500.0,0.00013698,2]
[353323804,1739765441226,-500.0,0.00013698,2]
[353323805,1739765441236,-500.0,0.00013698,2]
[353323806,1739765441245,-502.05193192,0.00013698,2]
[353323807,1739765441254,-500.0,0.00013698,2]
[353323808,1739765441264,-636.48,0.00013698,2]
[353323809,1739765441273,-636.48,0.00013698,2]
[353323810,1739765441283,-636.48,0.00013698,2]
[353323811,1739765441293,-500.0,0.00013698,2]
[353323812,1739765441304,-636.48,0.00013698,2]
[353323813,1739765441313,-321.89219962,0.00013698,2]
[353323814,1739765441323,-636.48,0.00013698,2]
[353323815,1739765441332,-500.0,0.00013698,2]
[353323816,1739765441342,-636.48,0.00013698,2]
[353323817,1739765441352,-507.3177594,0.00013698,2]
[353323818,1739765441361,-636.48,0.00013698,2]
[353323819,1739765441371,-636.48,0.00013698,2]
[353323820,1739765441381,-636.48,0.00013698,2]
[353323821,1739765441390,-636.48,0.00013698,2]
[353323822,1739765441400,-636.48,0.00013698,2]
[353323823,1739765441410,-500.0,0.00013698,2]
[353323824,1739765441419,-636.48,0.00013698,2]
[353323825,1739765441428,-636.48,0.00013698,2]
[353323826,1739765441437,-500.0,0.00013698,2]
[353323827,1739765441446,-533.05203126,0.00013698,2]
[353323828,1739765441456,-500.0,0.00013698,2]
[353323829,1739765441465,-503.89395354,0.00013698,2]
[353323830,1739765441474,-500.0,0.00013698,2]
[353323831,1739765441484,-500.0,0.00013698,2]
[353323832,1739765441493,-500.0,0.00013698,2]
[353323833,1739765441503,-500.0,0.00013698,2]
[353323834,1739765441512,-500.0,0.00013698,2]
[353323835,1739765441522,-785.56,0.00013698,2]
[353323836,1739765441531,-500.0,0.00013698,2]
[353323837,1739765441540,-521.10894904,0.00013698,2]
[353323838,1739765441549,-501.00557669,0.00013698,2]
[353323839,1739765441559,-499.1265071,0.00013698,2]
[353323840,1739765441568,-500.0,0.00013698,2]
[353323841,1739765441578,-504.21421301,0.00013698,2]
[353323842,1739765441588,-500.0,0.00013698,2]
[353323843,1739765441597,-500.0,0.00013698,2]
[353323844,1739765441607,-500.0,0.00013698,2]
[353323845,1739765441616,-500.0,0.00013698,2]
[353323846,1739765441626,-500.0,0.00013698,2]
[353323847,1739765441635,-500.0,0.00013698,2]
[353323848,1739765441644,-500.0,0.00013698,2]
[353323849,1739765441654,-500.0,0.00013698,2]
[353323850,1739765441663,-1169.23,0.00013698,2]
[353323851,1739765441673,-501.0744693,0.00013698,2]
[353323852,1739765441683,-781.76,0.00013698,2]
[353323853,1739765441693,-500.0,0.00013698,2]
[353323854,1739765441702,-500.0,0.00013698,2]
[353323855,1739765441711,-500.0,0.00013698,2]
[353323856,1739765441720,-500.0,0.00013698,2]
[353323857,1739765441730,-1878.31,0.00013698,2]
[353323858,1739765441741,-503.40188369,0.00013698,2]
[353323859,1739765441751,-500.0,0.00013698,2]
[353323860,1739765441762,-500.0,0.00013698,2]
[353323861,1739765441772,-500.0,0.00013698,2]
[353323862,1739765441782,-500.0,0.00013698,2]
[353323863,1739765441795,-500.0,0.00013698,2]
[353323864,1739765441805,-500.0,0.00013698,2]
[353323865,1739765441815,-500.0,0.00013698,2]
[353323866,1739765441825,-500.0,0.00013698,2]
[353323867,1739765441834,-500.0,0.00013698,2]
[353323868,1739765441844,-500.0,0.00013698,2]
[353323869,1739765441856,-500.0,0.00013698,2]
[353323870,1739765441867,-500.0,0.00013698,2]
[353323871,1739765441877,-465.57842543,0.00013698,2]
[353323872,1739765441887,-501.46076567,0.00013698,2]
[353323873,1739765441898,-500.0,0.00013698,2]
[353323874,1739765441908,-500.0,0.00013698,2]
[353323875,1739765441918,-500.0,0.00013698,2]
[353323876,1739765441929,-500.0,0.00013698,2]
[353323877,1739765441939,-500.0,0.00013698,2]
[353323878,1739765441949,-505.58429569,0.00013698,2]
[353323879,1739765441959,-649.57,0.00013698,2]
[353323880,1739765441969,-409.61345587,0.00013698,2]
[353323881,1739765441979,-500.0,0.00013698,2]
[353323882,1739765441989,-691.79,0.00013698,2]
[353323883,1739765441999,-500.0,0.00013698,2]
[353323884,1739765442008,-500.0,0.00013698,2]
[353323885,1739765442018,-500.0,0.00013698,2]
[353323886,1739765442028,-500.0,0.00013698,2]
[353323887,1739765442038,-500.0,0.00013698,2]
[353323888,1739765442048,-504.76396442,0.00013698,2]
[353323889,1739765442058,-500.0,0.00013698,2]
[353323890,1739765442068,-605.83293041,0.00013698,2]
[353323891,1739765442078,-506.97882782,0.00013698,2]
[353323892,1739765442088,-500.0,0.00013698,2]
[353323893,1739765442097,-500.0,0.00013698,2]
[353323894,1739765442107,-151.0,0.00013698,2]
[353323895,1739765442116,-723.37,0.00013698,2]
[353323896,1739765442126,-500.0,0.00013698,2]
[353323897,1739765442136,-500.0,0.00013698,2]
[353323898,1739765442146,-554.54,0.00013698,2]
[353323899,1739765442156,-1059.88,0.00013698,2]
[353323900,1739765442165,-1419.74,0.00013698,2]
[353323901,1739765442175,-547.22,0.00013698,2]
[353323902,1739765442186,-500.0,0.00013698,2]
[353323903,1739765442195,-500.0,0.00013698,2]
[353323904,1739765442206,-500.0,0.00013698,2]
[353323905,1739765442216,-500.0,0.00013698,2]
[353323906,1739765442226,-500.0,0.00013698,2]
[353323907,1739765442236,-500.0,0.00013698,2]
[353323908,1739765442246,-186.47033,0.00013698,2]
[353323909,1739765442256,-500.0,0.00013698,2]
[353323910,1739765442265,-500.0,0.00013698,2]
[353323911,1739765442275,-500.0,0.00013698,2]
[353323912,1739765442284,-1175.0,0.00013698,2]
[353323913,1739765442294,-417.17036768,0.00013698,2]
[353323914,1739765442304,-500.0,0.00013698,2]
[353323915,1739765442313,-500.0,0.00013698,2]
[353323916,1739765442323,-500.0,0.00013698,2]
[353323917,1739765442334,-500.0,0.00013698,2]
[353323918,1739765442343,-500.0,0.00013698,2]
[353323919,1739765442353,-867.53,0.00013698,2]
[353323920,1739765442363,-500.0,0.00013698,2]
[353323921,1739765442372,-500.0,0.00013698,2]
[353323922,1739765442382,-500.0,0.00013698,2]
[353323923,1739765442391,-500.0,0.00013698,2]
[353323924,1739765442401,-500.0,0.00013698,2]
[353323925,1739765442411,-506.3312657,0.00013698,2]
[353323926,1739765442420,-500.0,0.00013698,2]
[353323927,1739765442431,-500.0,0.00013698,2]
[353323928,1739765442441,-500.0,0.00013698,2]
[353323929,1739765442452,-151.0,0.00013698,2]
[353323930,1739765442461,-503.22102228,0.00013698,2]
[353323931,1739765442471,-504.1580655,0.00013698,2]
[353323932,1739765442482,-559.85,0.00013698,2]
[353323933,1739765442492,-500.0,0.00013698,2]
[353323934,1739765442502,-500.0,0.00013698,2]
[353323935,1739765442512,-500.0,0.00013698,2]
[353323937,1739765442523,-796.12,0.00013698,2]
[353323939,1739765442533,-500.0,0.00013698,2]
[353323941,1739765442543,-500.0,0.00013698,2]
[353323942,1739765442552,-709.3,0.00013698,2]
[353323943,1739765442561,-505.9552492,0.00013698,2]
[353323944,1739765442571,-500.0,0.00013698,2]
[353323945,1739765442581,-151.0,0.00013698,2]
[353323946,1739765442592,-500.0,0.00013698,2]
[353323947,1739765442602,-505.35856573,0.00013698,2]
[353323948,1739765442611,-648.4872138,0.00013698,2]
[353323949,1739765442621,-500.0,0.00013698,2]
[353323950,1739765442631,-500.0,0.00013698,2]
[353323951,1739765442640,-500.0,0.00013698,2]
[353323952,1739765442653,-507.64362186,0.00013698,2]
[353323953,1739765442663,-886.13,0.00013698,2]
[353323954,1739765442673,-500.0,0.00013698,2]
[353323955,1739765442683,-501.21245238,0.00013698,2]
[353323956,1739765442693,-768.74,0.00013698,2]
[353323957,1739765442702,-500.0,0.00013698,2]
[353323958,1739765442712,-440.19099306,0.00013698,2]
[353323959,1739765442722,-508.39409095,0.00013698,2]
[353323960,1739765442731,-504.47125296,0.00013698,2]
[353323961,1739765442741,-504.67292741,0.00013698,2]
[353323962,1739765442752,-601.81,0.00013698,2]
[353323963,1739765442762,-500.0,0.00013698,2]
[353323964,1739765442772,-500.0,0.00013698,2]
[353323965,1739765442782,-500.0,0.00013698,2]
[353323966,1739765442792,-1287.47,0.00013698,2]
[353323967,1739765442802,-505.06425694,0.00013698,2]
[353323968,1739765442812,-223.68092328,0.00013698,2]
[353323969,1739765442822,-500.0,0.00013698,2]
[353323970,1739765442832,-1214.0,0.00013698,2]
[353323971,1739765442841,-645.52,0.00013698,2]
[353323972,1739765442854,-504.56398659,0.00013698,2]
[353323973,1739765442863,-500.0,0.00013698,2]
[353323974,1739765442873,-151.0,0.00013698,2]
[353323975,1739765442883,-500.0,0.00013698,2]
[353323976,1739765442894,-500.0,0.00013698,2]
[353323977,1739765443036,-500.0,0.00013698,2]
[353323978,1739765443059,-151.0,0.00013698,2]
[353323979,1739765443068,-505.58125264,0.00013698,2]
[353323981,1739765443078,-500.0,0.00013698,2]
[353323983,1739765443090,-500.0,0.00013698,2]
[353323985,1739765443099,-555.02,0.00013698,2]
[353323987,1739765443109,-1046.04,0.00013698,2]
[353323989,1739765443119,-500.0,0.00013698,2]
[353323991,1739765443129,-500.0,0.00013698,2]
[353323993,1739765443139,-500.0,0.00013698,2]
[353323995,1739765443148,-500.0,0.00013698,2]
[353323997,1739765443157,-500.0,0.00013698,2]
[353323999,1739765443166,-500.0,0.00013698,2]
[353324001,1739765443175,-500.0,0.00013698,2]
[353324003,1739765443184,-739.26,0.00013698,2]
[353324005,1739765443193,-151.0,0.00013698,2]
[353324007,1739765443202,-1000.0,0.00013698,2]
[353324009,1739765443211,-500.0,0.00013698,2]
[353324011,1739765443222,-276.09844861,0.00013698,2]
[353324013,1739765443231,-500.0,0.00013698,2]
[353324015,1739765443240,-503.0241867,0.00013698,2]
[353324017,1739765443249,-500.0,0.00013698,2]
[353324019,1739765443258,-503.34683545,0.00013698,2]
[353324021,1739765443268,-500.0,0.00013698,2]
[353324023,1739765443277,-500.0,0.00013698,2]
[353324025,1739765443290,-978.77,0.00013698,2]
[353324027,1739765443299,-503.66327146,0.00013698,2]
[353324029,1739765443308,-500.0,0.00013698,2]
[353324031,1739765443318,-500.0,0.00013698,2]
[353324033,1739765443327,-520.37614175,0.00013698,2]
[353324035,1739765443336,-800.25,0.00013698,2]
[353324037,1739765443345,-500.0,0.00013698,2]
[353324039,1739765443354,-793.68,0.00013698,2]
[353324041,1739765443363,-500.0,0.00013698,2]
[353324043,1739765443373,-500.0,0.00013698,2]
[353324046,1739765443382,-500.0,0.00013698,2]
[353324048,1739765443391,-500.0,0.00013698,2]
[353324050,1739765443400,-500.0,0.00013698,2]
[353324052,1739765443409,-500.0,0.00013698,2]
[353324054,1739765443421,-500.0,0.00013698,2]
[353324056,1739765443429,-500.0,0.00013698,2]
[353324058,1739765443437,-939.89,0.00013698,2]
[353324060,1739765443447,-500.0,0.00013698,2]
[353324062,1739765443456,-524.43,0.00013698,2]
[353324064,1739765443465,-500.0,0.00013698,2]
[353324066,1739765443474,-500.0,0.00013698,2]
[353324068,1739765443483,-817.74,0.00013698,2]
[353324070,1739765443492,-503.44923533,0.00013698,2]
[353324072,1739765443502,-503.89808625,0.00013698,2]
[353324074,1739765443511,-500.0,0.00013698,2]
[353324076,1739765443520,-500.0,0.00013698,2]
[353324078,1739765443529,-500.0,0.00013698,2]
[353324080,1739765443539,-2743.06,0.00013698,2]
[353324082,1739765443548,-707.17,0.00013698,2]
[353324084,1739765443557,-151.0,0.00013698,2]
[353324086,1739765443566,-500.0,0.00013698,2]
[353324088,1739765443575,-6500.0,0.00013698,2]
[353324090,1739765443584,-500.0,0.00013698,2]
[353324092,1739765443594,-758.69,0.00013698,2]
[353324094,1739765443603,-500.0,0.00013698,2]
[353324096,1739765443612,-500.0,0.00013698,2]
[353324099,1739765443622,-500.0,0.00013698,2]
[353324101,1739765443631,-1430.22,0.00013698,2]
[353324103,1739765443640,-500.0,0.00013698,2]
[353324104,1739765443649,-500.0,0.00013698,2]
[353324106,1739765443658,-503.7288123,0.00013698,2]
[353324108,1739765443667,-500.0,0.00013698,2]
[353324110,1739765443677,-6500.0,0.00013698,2]
[353324112,1739765443686,-500.0,0.00013698,2]
[353324114,1739765443695,-1068.36,0.00013698,2]
[353324116,1739765443704,-500.0,0.00013698,2]
[353324118,1739765443713,-500.0,0.00013698,2]
[353324120,1739765443723,-1063.2,0.00013698,2]
[353324122,1739765443732,-500.0,0.00013698,2]
[353324125,1739765443742,-506.04606824,0.00013698,2]
[353324127,1739765443752,-500.0,0.00013698,2]
[353324129,1739765443761,-500.0,0.00013698,2]
[353324131,1739765443770,-500.0,0.00013698,2]
[353324132,1739765443780,-500.0,0.00013698,2]
[353324134,1739765443789,-2525.91,0.00013698,2]
[353324136,1739765443799,-502.07826405,0.00013698,2]
[353324138,1739765443808,-500.0,0.00013698,2]
[353324141,1739765443817,-500.0,0.00013698,2]
[353324142,1739765443826,-500.0,0.00013698,2]
[353324144,1739765443835,-508.01021364,0.00013698,2]
[353324146,1739765443845,-500.0,0.00013698,2]
[353324148,1739765443859,-699.06,0.00013698,2]
[353324150,1739765443868,-500.0,0.00013698,2]
[353324152,1739765443877,-1180.15,0.00013698,2]
[353324155,1739765443887,-500.0,0.00013698,2]
[353324157,1739765443898,-1246.7,0.00013698,2]
[353324159,1739765443907,-578.11,0.00013698,2]
[353324161,1739765443916,-500.0,0.00013698,2]
[353324163,1739765443925,-500.0,0.00013698,2]
[353324165,1739765443935,-500.0,0.00013698,2]
[353324167,1739765443944,-151.0,0.00013698,2]
[353324169,1739765443953,-500.0,0.00013698,2]
[353324171,1739765443963,-500.0,0.00013698,2]
[353324173,1739765443972,-500.0,0.00013698,2]
[353324175,1739765443982,-500.0,0.00013698,2]
[353324177,1739765443991,-500.0,0.00013698,2]
[353324179,1739765444001,-151.0,0.00013698,2]
[353324181,1739765444010,-500.0,0.00013698,2]
[353324183,1739765444020,-542.10470152,0.00013698,2]
[353324185,1739765444029,-503.08633221,0.00013698,2]
[353324187,1739765444039,-500.0,0.00013698,2]
[353324189,1739765444049,-500.0,0.00013698,2]
[353324191,1739765444059,-500.0,0.00013698,2]
[353324193,1739765444069,-500.0,0.00013698,2]
[353324195,1739765444078,-500.0,0.00013698,2]
[353324197,1739765444088,-501.87270186,0.00013698,2]
[353324199,1739765444097,-504.20361723,0.00013698,2]
[353324201,1739765444107,-539.25726588,0.00013698,2]
[353324203,1739765444116,-500.0,0.00013698,2]
[353324206,1739765444127,-500.0,0.00013698,2]
[353324208,1739765444136,-500.0,0.00013698,2]
[353324210,1739765444146,-1027.36,0.00013698,2]
[353324212,1739765444156,-498.80032317,0.00013698,2]
[353324214,1739765444165,-500.0,0.00013698,2]
[353324216,1739765444175,-1365.91,0.00013698,2]
[353324218,1739765444184,-500.0,0.00013698,2]
[353324220,1739765444194,-500.0,0.00013698,2]
[353324222,1739765444203,-500.0,0.00013698,2]
[353324224,1739765444212,-500.0,0.00013698,2]
[353324225,1739765444221,-500.0,0.00013698,2]
[353324227,1739765444230,-151.0,0.00013698,2]
[353324229,1739765444240,-500.0,0.00013698,2]
[353324232,1739765444249,-619.87,0.00013698,2]
[353324233,1739765444258,-500.0,0.00013698,2]
[353324235,1739765444267,-500.0,0.00013698,2]
[353324237,1739765444277,-500.0,0.00013698,2]
[353324239,1739765444286,-508.85687266,0.00013698,2]
[353324241,1739765444295,-925.02,0.00013698,2]
[353324243,1739765444304,-2208.925872,0.00013698,2]
[353324245,1739765444313,-230.45803808,0.00013698,2]
[353324247,1739765444322,-500.0,0.00013698,2]
[353324249,1739765444330,-1297.31,0.00013698,2]
[353324251,1739765444340,-310.2274405,0.00013698,2]
[353324253,1739765444349,-643.84,0.00013698,2]
[353324256,1739765444358,-500.0,0.00013698,2]
[353324257,1739765444367,-500.0,0.00013698,2]
[353324260,1739765444377,-596.18,0.00013698,2]
[353324262,1739765444386,-500.0,0.00013698,2]
[353324264,1739765444395,-739.95,0.00013698,2]
[353324265,1739765444405,-2208.925872,0.00013698,2]
[353324267,1739765444413,-500.0,0.00013698,2]
[353324269,1739765444423,-502.76636359,0.00013698,2]
[353324271,1739765444432,-490.66753492,0.00013698,2]
[353324274,1739765444441,-151.0,0.00013698,2]
[353324275,1739765444450,-500.0,0.00013698,2]
[353324276,1739765444459,-500.0,0.00013698,2]
[353324277,1739765444468,-167.89242981,0.00013698,2]
[353324288,1739765444995,-332.10757019,0.00013698,2]
[353324289,1739765445004,-500.0,0.00013698,2]
[353324290,1739765445013,-1014.96548731,0.00013698,2]
[353324291,1739765445025,-56.59451269,0.00013698,2]
[353324292,1739765445034,-938.39,0.00013698,2]
[353324293,1739765445044,-504.78700589,0.00013698,2]
[353324294,1739765445053,-1127.54,0.00013698,2]
[353324295,1739765445062,-500.0,0.00013698,2]
[353324296,1739765445071,-500.0,0.00013698,2]
[353324297,1739765445080,-501.91210257,0.00013698,2]
[353324298,1739765445089,-372.16202333,0.00013698,2]
[353324299,1739765445098,-500.0,0.00013698,2]
[353324300,1739765445108,-751.36,0.00013698,2]
[353324301,1739765445118,-500.0,0.00013698,2]
[353324302,1739765445128,-151.0,0.00013698,2]
[353324303,1739765445138,-508.4868433,0.00013698,2]
[353324304,1739765445147,-500.0,0.00013698,2]
[353324305,1739765445156,-1539.78,0.00013698,2]
[353324306,1739765445166,-480.38539114,0.00013698,2]
[353324307,1739765445175,-749.83,0.00013698,2]
[353324308,1739765445184,-500.0,0.00013698,2]
[353324309,1739765445193,-500.0,0.00013698,2]
[353324310,1739765445203,-710.93,0.00013698,2]
[353324311,1739765445212,-500.0,0.00013698,2]
[353324312,1739765445221,-151.0,0.00013698,2]
[353324313,1739765445231,-507.62862372,0.00013698,2]
[353324314,1739765445240,-359.80204146,0.00013698,2]
[353324315,1739765445250,-375.89203792,0.00013698,2]
[353324316,1739765445259,-1011.07,0.00013698,2]
[353324317,1739765445268,-500.0,0.00013698,2]
[353324318,1739765445278,-500.0,0.00013698,2]
[353324319,1739765445287,-500.0,0.00013698,2]
[353324320,1739765445296,-786.6,0.00013698,2]
[353324321,1739765445305,-504.03343482,0.00013698,2]
[353324322,1739765445315,-500.0,0.00013698,2]
[353324323,1739765445324,-502.80489093,0.00013698,2]
[353324324,1739765445333,-409.8170828,0.00013698,2]
[353324325,1739765445343,-500.0,0.00013698,2]
[353324326,1739765445353,-946.45,0.00013698,2]
[353324327,1739765445362,-501.17444222,0.00013698,2]
[353324328,1739765445371,-500.0,0.00013698,2]
[353324329,1739765445380,-500.0,0.00013698,2]
[353324330,1739765445390,-500.0,0.00013698,2]
[353324331,1739765445398,-510.7839517,0.00013698,2]
[353324332,1739765445406,-500.0,0.00013698,2]
[353324333,1739765445415,-500.95068515,0.00013698,2]
[353324334,1739765445424,-500.0,0.00013698,2]
[353324335,1739765445433,-154.41969247,0.00013698,2]
[353324336,1739765445442,-500.0,0.00013698,2]
[353324337,1739765445451,-500.0,0.00013698,2]
[353324338,1739765445459,-500.0,0.00013698,2]
[353324339,1739765445469,-501.21466337,0.00013698,2]
[353324340,1739765445478,-1690.37,0.00013698,2]
[353324341,1739765445487,-500.0,0.00013698,2]
[353324342,1739765445496,-505.55036841,0.00013698,2]
[353324343,1739765445505,-500.0,0.00013698,2]
[353324344,1739765445514,-297.581454,0.00013698,2]
[353324345,1739765445523,-500.0,0.00013698,2]
[353324346,1739765445532,-508.60528438,0.00013698,2]
[353324347,1739765445541,-500.0,0.00013698,2]
[353324348,1739765445550,-500.0,0.00013698,2]
[353324349,1739765445560,-803.69,0.00013698,2]
[353324350,1739765445570,-500.0,0.00013698,2]
[353324351,1739765445579,-500.0,0.00013698,2]
[353324352,1739765445588,-500.0,0.00013698,2]
[353324353,1739765445598,-261.65819848,0.00013698,2]
[353324354,1739765445607,-705.26,0.00013698,2]
[353324355,1739765445616,-503.13186724,0.00013698,2]
[353324356,1739765445630,-967.33,0.00013698,2]
[353324357,1739765445639,-500.0,0.00013698,2]
[353324358,1739765445648,-500.0,0.00013698,2]
[353324359,1739765445657,-503.24772167,0.00013698,2]
[353324360,1739765445666,-627.63,0.00013698,2]
[353324361,1739765445676,-500.0,0.00013698,2]
[353324362,1739765445685,-151.0,0.00013698,2]
[353324363,1739765445694,-500.0,0.00013698,2]
[353324364,1739765445703,-500.0,0.00013698,2]
[353324365,1739765445712,-500.0,0.00013698,2]
[353324366,1739765445721,-506.14965333,0.00013698,2]
[353324367,1739765445731,-504.11825825,0.00013698,2]
[353324368,1739765445740,-500.0,0.00013698,2]
[353324369,1739765445752,-500.0,0.00013698,2]
[353324370,1739765445762,-492.49051196,0.00013698,2]
[353324371,1739765445770,-500.0,0.00013698,2]
[353324372,1739765445779,-500.0,0.00013698,2]
[353324373,1739765445788,-2353.74,0.00013698,2]
[353324374,1739765445797,-500.0,0.00013698,2]
[353324375,1739765445807,-637.17949339,0.00013698,2]
[353324376,1739765445818,-500.0,0.00013698,2]
[353324377,1739765445827,-501.06506412,0.00013698,2]
[353324378,1739765445838,-500.0,0.00013698,2]
[353324379,1739765445849,-199.61446163,0.00013698,2]
[353324380,1739765445859,-1167.56,0.00013698,2]
[353324381,1739765445868,-500.0,0.00013698,2]
[353324382,1739765445877,-516.49,0.00013698,2]
[353324383,1739765445887,-151.0,0.00013698,2]
[353324384,1739765445897,-500.0,0.00013698,2]
[353324385,1739765445907,-151.0,0.00013698,2]
[353324386,1739765445916,-500.0,0.00013698,2]
[353324387,1739765445926,-500.0,0.00013698,2]
[353324388,1739765445935,-500.0,0.00013698,2]
[353324389,1739765445944,-500.0,0.00013698,2]
[353324390,1739765445953,-658.69,0.00013698,2]
[353324391,1739765445962,-500.0,0.00013698,2]
[353324392,1739765445971,-151.0,0.00013698,2]
[353324393,1739765445980,-511.04,0.00013698,2]
[353324394,1739765446109,-500.0,0.00013698,2]
[353324396,1739765446118,-500.0,0.00013698,2]
[353324397,1739765446128,-564.87984386,0.00013698,2]
[353324398,1739765446137,-500.0,0.00013698,2]
[353324399,1739765446146,-500.0,0.00013698,2]
[353324400,1739765446155,-500.0,0.00013698,2]
[353324403,1739765446164,-151.0,0.00013698,2]
[353324404,1739765446173,-718.03,0.00013698,2]
[353324405,1739765446183,-500.0,0.00013698,2]
[353324406,1739765446192,-500.0,0.00013698,2]
[353324407,1739765446201,-500.0,0.00013698,2]
[353324408,1739765446210,-319.55333862,0.00013698,2]
[353324409,1739765446220,-500.0,0.00013698,2]
[353324410,1739765446229,-1057.15,0.00013698,2]
[353324411,1739765446238,-557.35,0.00013698,2]
[353324412,1739765446247,-500.0,0.00013698,2]
[353324413,1739765446256,-500.0,0.00013699,2]
[353324414,1739765446265,-500.0,0.00013699,7]
[353324415,1739765446274,-169.68,0.00013699,2]
[353324416,1739765446283,-200.0,0.00013699,2]
[353324417,1739765446291,-153.50955405,0.00013763,2]
[353324418,1739765446300,-179.75114017,0.00013763,2]
[353324419,1739765446309,-484.40664579,0.00013763,2]
[353324420,1739765446318,-237.3879876,0.00013763,2]
[353324421,1739765446327,-2076.2162152,0.00013763,2]
[353324422,1739765446337,-3860.1259635,0.00013771,2]
[353324423,1739765446346,-300.0,0.00013779,2]
[353324424,1739765446355,-300.0,0.00013779,2]
[353324425,1739765446364,-300.0,0.00013779,2]
[353324426,1739765446373,-263.52889134,0.00013779,2]
[353324427,1739765446383,-384.03884557,0.00013779,2]
[353324428,1739765446392,-636.48,0.00013779,2]
[353324429,1739765446402,-636.48,0.00013779,2]
[353324430,1739765446411,-500.0,0.00013779,2]
[353324431,1739765446420,-500.0,0.00013779,2]
[353324432,1739765446429,-500.0,0.00013779,2]
[353324433,1739765446438,-500.0,0.00013779,2]
[353324434,1739765446447,-151.0,0.0001378,2]
[353324435,1739765446457,-208.872871,0.0001378,2]
[353324436,1739765446467,-622.74090702,0.0001378,2]
[353324437,1739765446476,-500.0,0.0001378,2]
[353324438,1739765446486,-151.0,0.0001378,2]
[353324439,1739765446496,-165.636021,0.0001378,2]
[353324440,1739765446505,-151.0,0.0001378,2]
[353324441,1739765446514,-151.0,0.0001378,2]
[353324442,1739765446524,-151.0,0.0001378,2]
[353324443,1739765446533,-151.0,0.0001378,2]
[353324444,1739765446542,-500.0,0.0001378,2]